[Event "*** Titled Tuesday Blitz"]
[Site "Chess.com"]
[Date "2018.05.01"]
[Round "10"]
[White "vugarrasulov"]
[Black "Abrito99"]
[Result "1-0"]
[WhiteElo "2731"]
[BlackElo "2518"]
[TimeControl "180+2"]
[EndTime "15:09:29 PDT"]
[Termination "vugarrasulov won by resignation"]

1. e4 {[%clk 0:03:01.9]} 1... c5 {[%clk 0:02:52.5]} 2. Nf3 {[%clk 0:03:02.6]}
2... e6 {[%clk 0:02:53.1]} 3. d4 {[%clk 0:03:03.8]} 3... cxd4 {[%clk 0:02:55]}
4. Nxd4 {[%clk 0:03:05.7]} 4... Nc6 {[%clk 0:02:55.9]} 5. Nc3 {[%clk 0:03:06.6]}
5... Qc7 {[%clk 0:02:56.8]} 6. Be3 {[%clk 0:03:07.7]} 6... a6 {[%clk 0:02:57.8]}
7. Qf3 {[%clk 0:03:08.3]} 7... d6 {[%clk 0:02:56.8]} 8. O-O-O {[%clk 0:03:08.6]}
8... Bd7 {[%clk 0:02:57.9]} 9. Qg3 {[%clk 0:03:09.4]} 9... Rc8 {[%clk
0:02:42.6]} 10. Kb1 {[%clk 0:03:07.7]} 10... b5 {[%clk 0:02:19.3]} 11. Bxb5
{[%clk 0:03:06.8]} 11... axb5 {[%clk 0:02:21.2]} 12. Ndxb5 {[%clk 0:03:08.5]}
12... Qb8 {[%clk 0:02:20.4]} 13. Nxd6+ {[%clk 0:03:09.6]} 13... Bxd6 {[%clk
0:02:21.3]} 14. Rxd6 {[%clk 0:03:08.4]} 14... Nge7 {[%clk 0:01:54.2]} 15. Rhd1
{[%clk 0:03:07.6]} 15... Rc7 {[%clk 0:01:50.8]} 16. Bf4 {[%clk 0:02:54.8]} 16...
e5 {[%clk 0:01:19.9]} 17. Bxe5 {[%clk 0:02:54.6]} 17... Nxe5 {[%clk 0:01:17.4]}
18. Qxe5 {[%clk 0:02:56.5]} 18... O-O {[%clk 0:01:18.8]} 19. Qxe7 {[%clk
0:02:51.5]} 19... Bg4 {[%clk 0:01:18]} 20. Qxf8+ {[%clk 0:02:42.6]} 20... Qxf8
{[%clk 0:01:13.5]} 21. Rd8 {[%clk 0:02:44.5]} 21... Rxc3 {[%clk 0:01:03.7]} 22.
Rxf8+ {[%clk 0:02:44.9]} 22... Kxf8 {[%clk 0:01:04.8]} 23. f3 {[%clk 0:02:45.7]}
23... Bxf3 {[%clk 0:00:57.9]} 24. gxf3 {[%clk 0:02:47.6]} 24... Rxf3 {[%clk
0:00:59.4]} 25. a4 {[%clk 0:02:49.1]} 25... Re3 {[%clk 0:01:00.5]} 26. b4 {[%clk
0:02:48]} 26... Rxe4 {[%clk 0:01:01.6]} 27. c3 {[%clk 0:02:49.5]} 27... f5
{[%clk 0:01:03.1]} 28. a5 {[%clk 0:02:50.1]} 28... f4 {[%clk 0:01:01.9]} 29. a6
{[%clk 0:02:50.8]} 29... Re7 {[%clk 0:01:00.1]} 30. b5 {[%clk 0:02:51.5]} 30...
Ra7 {[%clk 0:00:57.2]} 31. c4 {[%clk 0:02:50]} 31... g5 {[%clk 0:00:58.7]} 32.
c5 {[%clk 0:02:48.6]} 32... Ke7 {[%clk 0:00:59.2]} 33. b6 {[%clk 0:02:49.1]}
33... Rxa6 {[%clk 0:00:59.4]} 34. b7 {[%clk 0:02:50.7]} 1-0

[Event "*** Titled Tuesday Blitz"]
[Site "Chess.com"]
[Date "2018.05.01"]
[Round "10"]
[White "Morshynska"]
[Black "ChessicallyInclined"]
[Result "1-0"]
[WhiteElo "2148"]
[BlackElo "2199"]
[TimeControl "180+2"]
[EndTime "15:09:35 PDT"]
[Termination "Morshynska won by resignation"]

1. d4 {[%clk 0:03:01.9]} 1... d5 {[%clk 0:02:56.9]} 2. c4 {[%clk 0:02:54.5]}
2... Nf6 {[%clk 0:02:57.2]} 3. cxd5 {[%clk 0:02:55]} 3... Nxd5 {[%clk
0:02:53.3]} 4. e4 {[%clk 0:02:53.3]} 4... Nf6 {[%clk 0:02:52.4]} 5. f3 {[%clk
0:02:51.3]} 5... Nc6 {[%clk 0:02:47.7]} 6. Be3 {[%clk 0:02:49.4]} 6... e5 {[%clk
0:02:47.5]} 7. d5 {[%clk 0:02:48.8]} 7... Ne7 {[%clk 0:02:45.8]} 8. Nc3 {[%clk
0:02:47.8]} 8... Ng6 {[%clk 0:02:46.8]} 9. Bb5+ {[%clk 0:02:40.9]} 9... Bd7
{[%clk 0:02:47.3]} 10. Qa4 {[%clk 0:02:39]} 10... Bd6 {[%clk 0:02:46.2]} 11.
Nge2 {[%clk 0:02:36.1]} 11... O-O {[%clk 0:02:46]} 12. Bxd7 {[%clk 0:02:36.4]}
12... Nxd7 {[%clk 0:02:45]} 13. O-O {[%clk 0:02:25.4]} 13... Kh8 {[%clk
0:02:34.5]} 14. Ng3 {[%clk 0:02:21.5]} 14... Nf4 {[%clk 0:02:34.1]} 15. Kh1
{[%clk 0:01:50.2]} 15... Qh4 {[%clk 0:02:32]} 16. Qxd7 {[%clk 0:01:39.5]} 16...
h5 {[%clk 0:02:08.5]} 17. Nf5 {[%clk 0:01:28]} 17... Qg5 {[%clk 0:02:08.1]} 18.
g3 {[%clk 0:01:09.8]} 18... Rad8 {[%clk 0:02:05.9]} 19. Qa4 {[%clk 0:01:00.9]}
19... g6 {[%clk 0:02:06.7]} 20. gxf4 {[%clk 0:00:57.1]} 20... exf4 {[%clk
0:02:03.9]} 21. Bd4+ {[%clk 0:00:51.8]} 21... Kh7 {[%clk 0:02:05.2]} 22. Rg1
{[%clk 0:00:44.4]} 1-0

[Event "*** Titled Tuesday Blitz"]
[Site "Chess.com"]
[Date "2018.05.01"]
[Round "10"]
[White "aa175"]
[Black "Caisachess"]
[Result "0-1"]
[WhiteElo "1845"]
[BlackElo "2143"]
[TimeControl "180+2"]
[EndTime "15:11:00 PDT"]
[Termination "Caisachess won by checkmate"]

1. e4 {[%clk 0:03:01.9]} 1... e5 {[%clk 0:03:00.5]} 2. Nf3 {[%clk 0:02:59.6]}
2... Nc6 {[%clk 0:03:01.6]} 3. Bc4 {[%clk 0:02:57.7]} 3... Nf6 {[%clk
0:02:58.8]} 4. d3 {[%clk 0:02:54.4]} 4... Bc5 {[%clk 0:02:58.6]} 5. Nc3 {[%clk
0:02:53.6]} 5... h6 {[%clk 0:02:57.7]} 6. h3 {[%clk 0:02:53.4]} 6... d6 {[%clk
0:02:58.4]} 7. a3 {[%clk 0:02:51.4]} 7... a6 {[%clk 0:02:59.3]} 8. Be3 {[%clk
0:02:48.8]} 8... O-O {[%clk 0:02:58.2]} 9. Bxc5 {[%clk 0:02:47.7]} 9... dxc5
{[%clk 0:02:58.9]} 10. Nd5 {[%clk 0:02:49.6]} 10... Re8 {[%clk 0:02:54.3]} 11.
Qe2 {[%clk 0:02:32.3]} 11... b5 {[%clk 0:02:48]} 12. Nxf6+ {[%clk 0:02:28.3]}
12... Qxf6 {[%clk 0:02:47.8]} 13. Bd5 {[%clk 0:02:30.2]} 13... Bb7 {[%clk
0:02:45.4]} 14. O-O {[%clk 0:02:14.8]} 14... Rad8 {[%clk 0:02:36.2]} 15. c3
{[%clk 0:02:13.3]} 15... Bc8 {[%clk 0:02:34.3]} 16. Nd2 {[%clk 0:01:56.2]} 16...
Ne7 {[%clk 0:02:30.7]} 17. Ba2 {[%clk 0:01:53.1]} 17... Ng6 {[%clk 0:02:29.8]}
18. Rad1 {[%clk 0:01:50.6]} 18... Nf4 {[%clk 0:02:30.6]} 19. Qf3 {[%clk
0:01:50.4]} 19... Rxd3 {[%clk 0:02:30.8]} 20. Qg3 {[%clk 0:01:42.6]} 20... Ne2+
{[%clk 0:02:26.6]} 21. Kh2 {[%clk 0:01:43.8]} 21... Nxg3 {[%clk 0:02:27.4]} 22.
fxg3 {[%clk 0:01:45.7]} 22... Qg5 {[%clk 0:02:28.3]} 23. Rxf7 {[%clk 0:01:47.5]}
23... Be6 {[%clk 0:02:25.5]} 24. Bxe6 {[%clk 0:01:41.6]} 24... Rxe6 {[%clk
0:02:24.3]} 25. Nf3 {[%clk 0:01:43.5]} 25... Qe3 {[%clk 0:02:22.3]} 26. Rxd3
{[%clk 0:01:42.4]} 26... Qxd3 {[%clk 0:02:22.7]} 27. Rxc7 {[%clk 0:01:44.3]}
27... Qxe4 {[%clk 0:02:22.8]} 28. Rc8+ {[%clk 0:01:40.8]} 28... Kh7 {[%clk
0:02:23.3]} 29. Rxc5 {[%clk 0:01:42.5]} 29... Qe3 {[%clk 0:02:19.6]} 30. b4
{[%clk 0:01:37.9]} 30... e4 {[%clk 0:02:18.8]} 31. Nd4 {[%clk 0:01:35.7]} 31...
Rf6 {[%clk 0:02:19]} 32. Nf5 {[%clk 0:01:31.1]} 32... Rxf5 {[%clk 0:02:18.7]}
33. Rxf5 {[%clk 0:01:31.6]} 33... Qxc3 {[%clk 0:02:18.1]} 34. a4 {[%clk
0:01:28.9]} 34... bxa4 {[%clk 0:02:18.2]} 35. Ra5 {[%clk 0:01:30.8]} 35... Qxb4
{[%clk 0:02:17.8]} 36. Rxa6 {[%clk 0:01:32.7]} 36... a3 {[%clk 0:02:18.6]} 37.
Re6 {[%clk 0:01:34.2]} 37... a2 {[%clk 0:02:18.5]} 38. Ra6 {[%clk 0:01:36.1]}
38... e3 {[%clk 0:02:17.6]} 39. Rxa2 {[%clk 0:01:35]} 39... Qd2 {[%clk
0:02:18.4]} 40. Rxd2 {[%clk 0:01:33.5]} 40... exd2 {[%clk 0:02:20.3]} 41. h4
{[%clk 0:01:35.4]} 41... d1=Q {[%clk 0:02:21.3]} 42. Kh3 {[%clk 0:01:33.2]}
42... Kg6 {[%clk 0:02:17.4]} 43. g4 {[%clk 0:01:32.8]} 43... h5 {[%clk
0:02:16.7]} 44. g5 {[%clk 0:01:27.9]} 44... Kf5 {[%clk 0:02:17.1]} 45. g6 {[%clk
0:01:22.7]} 45... Qg4+ {[%clk 0:02:16]} 46. Kh2 {[%clk 0:01:23.6]} 46... Qxg6
{[%clk 0:02:17.9]} 47. Kg1 {[%clk 0:01:24.5]} 47... Kf4 {[%clk 0:02:18.8]} 48.
Kf2 {[%clk 0:01:22.6]} 48... Qg3+ {[%clk 0:02:19]} 49. Ke2 {[%clk 0:01:23.3]}
49... Qxg2+ {[%clk 0:02:18.9]} 50. Kd3 {[%clk 0:01:25.2]} 50... Qd5+ {[%clk
0:02:19.2]} 51. Kc3 {[%clk 0:01:25.5]} 51... Ke3 {[%clk 0:02:20.4]} 52. Kb4
{[%clk 0:01:27.4]} 52... Qc6 {[%clk 0:02:20.8]} 53. Ka3 {[%clk 0:01:29.3]} 53...
Qb5 {[%clk 0:02:21.7]} 54. Ka2 {[%clk 0:01:30.5]} 54... Qb4 {[%clk 0:02:23.2]}
55. Ka1 {[%clk 0:01:32.4]} 55... Kd2 {[%clk 0:02:24]} 56. Ka2 {[%clk 0:01:34.3]}
56... Kc2 {[%clk 0:02:25.4]} 57. Ka1 {[%clk 0:01:32.2]} 57... Qa3# {[%clk
0:02:26.2]} 0-1

[Event "*** Titled Tuesday Blitz"]
[Site "Chess.com"]
[Date "2018.05.01"]
[Round "10"]
[White "DrZeiss"]
[Black "Eliwood44"]
[Result "1-0"]
[WhiteElo "2246"]
[BlackElo "2182"]
[TimeControl "180+2"]
[EndTime "15:11:03 PDT"]
[Termination "DrZeiss won by resignation"]

1. e4 {[%clk 0:03:01.9]} 1... e5 {[%clk 0:03:00.6]} 2. Nf3 {[%clk 0:03:02.3]}
2... Nc6 {[%clk 0:02:59.5]} 3. Bb5 {[%clk 0:03:02.3]} 3... Nf6 {[%clk
0:02:59.5]} 4. d3 {[%clk 0:03:02.2]} 4... d6 {[%clk 0:03:00.6]} 5. c3 {[%clk
0:03:02.2]} 5... g6 {[%clk 0:03:01.1]} 6. O-O {[%clk 0:02:59.6]} 6... Bg7 {[%clk
0:03:01.8]} 7. Nbd2 {[%clk 0:02:58]} 7... O-O {[%clk 0:03:02.3]} 8. h3 {[%clk
0:02:55.4]} 8... Nh5 {[%clk 0:02:58.8]} 9. Kh2 {[%clk 0:02:49]} 9... Nf4 {[%clk
0:02:55.3]} 10. Ne1 {[%clk 0:02:26.4]} 10... a6 {[%clk 0:02:35.6]} 11. Bc4
{[%clk 0:02:13.6]} 11... Be6 {[%clk 0:02:31.8]} 12. Bxe6 {[%clk 0:02:05.8]}
12... fxe6 {[%clk 0:02:30.7]} 13. g3 {[%clk 0:02:04.1]} 13... Nh5 {[%clk
0:02:27.7]} 14. Ndf3 {[%clk 0:01:51.4]} 14... d5 {[%clk 0:02:24.2]} 15. Qe2
{[%clk 0:01:51.1]} 15... h6 {[%clk 0:02:19.1]} 16. Nh4 {[%clk 0:01:43]} 16...
Qf6 {[%clk 0:02:13]} 17. Qg4 {[%clk 0:01:32.1]} 17... Kh7 {[%clk 0:02:10.4]} 18.
Be3 {[%clk 0:01:10.5]} 18... Rf7 {[%clk 0:02:00.1]} 19. Neg2 {[%clk 0:00:58.3]}
19... d4 {[%clk 0:02:00.2]} 20. Bd2 {[%clk 0:00:52.9]} 20... Raf8 {[%clk
0:01:59.7]} 21. c4 {[%clk 0:00:47.2]} 21... Ne7 {[%clk 0:02:00]} 22. f4 {[%clk
0:00:38.7]} 22... exf4 {[%clk 0:01:59.7]} 23. gxf4 {[%clk 0:00:38.3]} 23... e5
{[%clk 0:01:50.6]} 24. f5 {[%clk 0:00:38.5]} 24... g5 {[%clk 0:01:46.9]} 25.
Qxh5 {[%clk 0:00:38.8]} 25... gxh4 {[%clk 0:01:47.8]} 26. Nxh4 {[%clk
0:00:39.6]} 26... Rh8 {[%clk 0:01:44.6]} 27. Rg1 {[%clk 0:00:40.3]} 27... Kg8
{[%clk 0:01:44.8]} 28. Rg2 {[%clk 0:00:38.3]} 28... Kf8 {[%clk 0:01:45.8]} 29.
Bb4 {[%clk 0:00:38.9]} 29... b6 {[%clk 0:01:45.1]} 30. Bxe7+ {[%clk 0:00:37.4]}
30... Rxe7 {[%clk 0:01:43.4]} 31. Ng6+ {[%clk 0:00:38.4]} 31... Kg8 {[%clk
0:01:43.2]} 32. Nxe7+ {[%clk 0:00:33.9]} 32... Qxe7 {[%clk 0:01:45.1]} 33. Rg6
{[%clk 0:00:30.1]} 33... Kf8 {[%clk 0:01:45.3]} 34. f6 {[%clk 0:00:28.5]} 34...
Bxf6 {[%clk 0:01:44.5]} 35. Rf1 {[%clk 0:00:28.4]} 1-0

[Event "*** Titled Tuesday Blitz"]
[Site "Chess.com"]
[Date "2018.05.01"]
[Round "10"]
[White "FairChess_on_YouTube"]
[Black "igorkovalenko"]
[Result "1-0"]
[WhiteElo "2874"]
[BlackElo "2733"]
[TimeControl "180+2"]
[EndTime "15:11:37 PDT"]
[Termination "FairChess_on_YouTube won by resignation"]

1. d4 {[%clk 0:03:01.9]} 1... Nf6 {[%clk 0:03:00.6]} 2. Bg5 {[%clk 0:03:02.3]}
2... Ne4 {[%clk 0:03:00.6]} 3. Bf4 {[%clk 0:03:02.9]} 3... d5 {[%clk 0:03:01.4]}
4. f3 {[%clk 0:03:04.1]} 4... Nf6 {[%clk 0:03:02.3]} 5. Nc3 {[%clk 0:03:05.4]}
5... a6 {[%clk 0:03:00]} 6. e4 {[%clk 0:03:06.1]} 6... e6 {[%clk 0:03:01.3]} 7.
Qd3 {[%clk 0:03:02.6]} 7... Be7 {[%clk 0:03:02.1]} 8. O-O-O {[%clk 0:03:03.4]}
8... Nc6 {[%clk 0:02:56.7]} 9. Nge2 {[%clk 0:02:56]} 9... b5 {[%clk 0:02:57.8]}
10. exd5 {[%clk 0:02:55.4]} 10... Nxd5 {[%clk 0:02:58.2]} 11. Nxd5 {[%clk
0:02:55.6]} 11... Qxd5 {[%clk 0:02:58.1]} 12. Nc3 {[%clk 0:02:55]} 12... Qd7
{[%clk 0:02:49.6]} 13. a3 {[%clk 0:02:41.7]} 13... b4 {[%clk 0:02:47.5]} 14. d5
{[%clk 0:02:32.2]} 14... bxc3 {[%clk 0:02:42]} 15. dxc6 {[%clk 0:02:33.2]} 15...
cxb2+ {[%clk 0:02:20.9]} 16. Kb1 {[%clk 0:02:25]} 16... Qxc6 {[%clk 0:02:22]}
17. Qc4 {[%clk 0:02:25.4]} 17... Qxc4 {[%clk 0:02:17.3]} 18. Bxc4 {[%clk
0:02:27.3]} 18... Bxa3 {[%clk 0:02:16.2]} 19. Bxc7 {[%clk 0:02:24.8]} 19... O-O
{[%clk 0:02:17.2]} 20. Bd6 {[%clk 0:02:23.9]} 20... Bxd6 {[%clk 0:02:17.4]} 21.
Rxd6 {[%clk 0:02:25.8]} 21... a5 {[%clk 0:02:07.6]} 22. Kxb2 {[%clk 0:02:25.5]}
22... Bb7 {[%clk 0:02:04]} 23. Rb1 {[%clk 0:02:18.3]} 23... Rfc8 {[%clk
0:02:02.8]} 24. Rd4 {[%clk 0:01:57.9]} 24... Rc7 {[%clk 0:01:59]} 25. Ka3 {[%clk
0:01:54.7]} 25... g6 {[%clk 0:01:50.2]} 26. Bd3 {[%clk 0:01:47.4]} 26... Kg7
{[%clk 0:01:45.4]} 27. Rb6 {[%clk 0:01:46.4]} 27... Bd5 {[%clk 0:01:38.2]} 28.
c4 {[%clk 0:01:44]} 28... Bc6 {[%clk 0:01:37]} 29. Rxc6 {[%clk 0:01:23.9]} 29...
Rxc6 {[%clk 0:01:37.6]} 30. Be4 {[%clk 0:01:25]} 30... Rac8 {[%clk 0:01:37.8]}
31. Bxc6 {[%clk 0:01:25.9]} 31... Rxc6 {[%clk 0:01:39.5]} 32. Kb3 {[%clk
0:01:26.4]} 32... Rb6+ {[%clk 0:01:37.4]} 33. Ka4 {[%clk 0:01:25.4]} 33... Rb2
{[%clk 0:01:38.5]} 34. c5 {[%clk 0:01:20]} 34... Rxg2 {[%clk 0:01:37.9]} 35. Rc4
{[%clk 0:01:15.7]} 35... Rd2 {[%clk 0:01:33.5]} 36. c6 {[%clk 0:01:14.8]} 36...
Rd8 {[%clk 0:01:34.4]} 37. c7 {[%clk 0:01:15.3]} 37... Rc8 {[%clk 0:01:35.9]}
38. Kxa5 {[%clk 0:01:16.5]} 38... f5 {[%clk 0:01:26.3]} 39. Kb6 {[%clk
0:01:16.8]} 39... e5 {[%clk 0:01:26]} 40. Kb7 {[%clk 0:01:17.1]} 40... Re8
{[%clk 0:01:25.2]} 41. c8=Q {[%clk 0:01:16.7]} 41... Rxc8 {[%clk 0:01:26.1]} 42.
Kxc8 {[%clk 0:01:17.9]} 42... Kf6 {[%clk 0:01:26.8]} 43. Kd7 {[%clk 0:01:18.8]}
43... h5 {[%clk 0:01:05.2]} 44. h4 {[%clk 0:01:16]} 44... e4 {[%clk 0:01:06.4]}
45. f4 {[%clk 0:01:14.4]} 1-0

[Event "*** Titled Tuesday Blitz"]
[Site "Chess.com"]
[Date "2018.05.01"]
[Round "10"]
[White "b_6"]
[Black "TheCount"]
[Result "0-1"]
[WhiteElo "2324"]
[BlackElo "2542"]
[TimeControl "180+2"]
[EndTime "15:11:43 PDT"]
[Termination "TheCount won by resignation"]

1. d4 {[%clk 0:03:01.9]} 1... Nf6 {[%clk 0:02:55.3]} 2. Bf4 {[%clk 0:03:02.7]}
2... g6 {[%clk 0:02:55.2]} 3. Nc3 {[%clk 0:03:03.1]} 3... Bg7 {[%clk 0:02:53.9]}
4. e4 {[%clk 0:03:04]} 4... d5 {[%clk 0:02:55.3]} 5. Nb5 {[%clk 0:03:04.8]} 5...
Na6 {[%clk 0:02:55.5]} 6. e5 {[%clk 0:03:00]} 6... Nd7 {[%clk 0:02:52.4]} 7. Nf3
{[%clk 0:02:49.7]} 7... c6 {[%clk 0:02:46.7]} 8. Nc3 {[%clk 0:02:47.6]} 8... O-O
{[%clk 0:01:55.4]} 9. h4 {[%clk 0:02:24.5]} 9... f6 {[%clk 0:01:55.6]} 10. Qd2
{[%clk 0:02:23.6]} 10... fxe5 {[%clk 0:01:55.9]} 11. Nxe5 {[%clk 0:02:24.5]}
11... Nxe5 {[%clk 0:01:56.9]} 12. Bxe5 {[%clk 0:02:24.8]} 12... Bxe5 {[%clk
0:01:53.1]} 13. dxe5 {[%clk 0:02:25.5]} 13... Qb6 {[%clk 0:01:54.7]} 14. h5
{[%clk 0:02:14]} 14... Bf5 {[%clk 0:01:44.7]} 15. O-O-O {[%clk 0:01:43.3]} 15...
Nb4 {[%clk 0:01:45]} 16. hxg6 {[%clk 0:01:16.6]} 16... Bxg6 {[%clk 0:01:43.9]}
17. f4 {[%clk 0:01:03.8]} 17... Nxc2 {[%clk 0:01:23]} 18. Bd3 {[%clk 0:00:47.8]}
18... Ne3 {[%clk 0:01:20.6]} 19. Bxg6 {[%clk 0:00:41.2]} 19... hxg6 {[%clk
0:01:22.5]} 20. Rh6 {[%clk 0:00:27]} 20... Nxd1 {[%clk 0:01:12.2]} 21. Rxg6+
{[%clk 0:00:25.7]} 21... Kf7 {[%clk 0:01:11.2]} 22. f5 {[%clk 0:00:16.1]} 22...
Qe3 {[%clk 0:01:11.9]} 23. e6+ {[%clk 0:00:15.2]} 23... Ke8 {[%clk 0:01:12.6]}
24. Kxd1 {[%clk 0:00:11.8]} 24... Qxd2+ {[%clk 0:01:13.6]} 25. Kxd2 {[%clk
0:00:13.7]} 25... Rxf5 {[%clk 0:01:14.8]} 26. Ne2 {[%clk 0:00:14.2]} 26... Rf6
{[%clk 0:01:11.8]} 27. Rg8+ {[%clk 0:00:14.7]} 27... Rf8 {[%clk 0:01:13]} 28.
Rg7 {[%clk 0:00:16.3]} 28... Rd8 {[%clk 0:01:11.6]} 29. Nd4 {[%clk 0:00:13.6]}
29... Rd6 {[%clk 0:01:12.2]} 30. g4 {[%clk 0:00:13.9]} 30... Kd8 {[%clk
0:01:09.4]} 31. Rg6 {[%clk 0:00:07.4]} 31... Rf6 {[%clk 0:01:08.4]} 32. Rg8+
{[%clk 0:00:08.2]} 32... Kc7 {[%clk 0:01:09.8]} 33. Nf5 {[%clk 0:00:09.5]} 33...
Rdxe6 {[%clk 0:01:09.9]} 34. Rg7 {[%clk 0:00:10.8]} 34... Rg6 {[%clk 0:01:09.9]}
35. Rg8 {[%clk 0:00:10.8]} 35... Rxg8 {[%clk 0:01:10.6]} 0-1

[Event "*** Titled Tuesday Blitz"]
[Site "Chess.com"]
[Date "2018.05.01"]
[Round "10"]
[White "HarutyunianTigranK"]
[Black "Storne89"]
[Result "1-0"]
[WhiteElo "2731"]
[BlackElo "2551"]
[TimeControl "180+2"]
[EndTime "15:12:08 PDT"]
[Termination "HarutyunianTigranK won on time"]

1. c4 {[%clk 0:03:00.7]} 1... e5 {[%clk 0:03:00.7]} 2. Nc3 {[%clk 0:03:01.9]}
2... Nc6 {[%clk 0:03:01.8]} 3. Nf3 {[%clk 0:03:00.6]} 3... Nf6 {[%clk
0:02:55.1]} 4. e4 {[%clk 0:03:00.9]} 4... Bb4 {[%clk 0:02:51.8]} 5. d3 {[%clk
0:03:01.6]} 5... O-O {[%clk 0:02:50.8]} 6. a3 {[%clk 0:03:02.7]} 6... Bxc3+
{[%clk 0:02:51]} 7. bxc3 {[%clk 0:03:04.6]} 7... d6 {[%clk 0:02:51.5]} 8. g3
{[%clk 0:03:05.9]} 8... Nd7 {[%clk 0:02:35]} 9. Bg2 {[%clk 0:03:01.5]} 9... Nc5
{[%clk 0:02:35.1]} 10. Nh4 {[%clk 0:02:59.1]} 10... Ne7 {[%clk 0:02:31.5]} 11.
O-O {[%clk 0:02:59.3]} 11... f5 {[%clk 0:02:32.4]} 12. exf5 {[%clk 0:02:57.1]}
12... Nxf5 {[%clk 0:02:33.7]} 13. Nxf5 {[%clk 0:02:57.3]} 13... Bxf5 {[%clk
0:02:34.7]} 14. d4 {[%clk 0:02:58.6]} 14... Nd3 {[%clk 0:02:22.2]} 15. Bxb7
{[%clk 0:02:54.6]} 15... Rb8 {[%clk 0:02:23.4]} 16. Bd5+ {[%clk 0:02:55.1]}
16... Kh8 {[%clk 0:02:24.9]} 17. Be3 {[%clk 0:02:55.2]} 17... Qd7 {[%clk
0:02:16.4]} 18. Bg2 {[%clk 0:02:47.7]} 18... Nb2 {[%clk 0:02:15.2]} 19. Qh5
{[%clk 0:02:26.5]} 19... Nxc4 {[%clk 0:02:13.6]} 20. Bg5 {[%clk 0:02:24.4]}
20... Bg4 {[%clk 0:01:59.8]} 21. Qh4 {[%clk 0:02:24.2]} 21... exd4 {[%clk
0:01:54.5]} 22. cxd4 {[%clk 0:02:21.7]} 22... Bf3 {[%clk 0:01:39.4]} 23. Bh3
{[%clk 0:02:16.6]} 23... Qf7 {[%clk 0:01:40.3]} 24. Rae1 {[%clk 0:02:15.7]}
24... Rbe8 {[%clk 0:01:41]} 25. Be7 {[%clk 0:02:15.1]} 25... Nd2 {[%clk
0:01:32.4]} 26. Bxf8 {[%clk 0:02:10.9]} 26... Rxf8 {[%clk 0:01:25.7]} 27. Re7
{[%clk 0:02:10.1]} 27... Qg6 {[%clk 0:00:54.8]} 28. Re6 {[%clk 0:01:30.6]} 28...
Bd5 {[%clk 0:00:37.7]} 29. Qe7 {[%clk 0:01:16.4]} 29... Nf3+ {[%clk 0:00:28.3]}
30. Kh1 {[%clk 0:01:16.3]} 30... Ng5+ {[%clk 0:00:29.1]} 31. f3 {[%clk
0:01:13.8]} 31... Nxe6 {[%clk 0:00:28.8]} 32. Bxe6 {[%clk 0:01:13.9]} 32... Rxf3
{[%clk 0:00:23.7]} 33. Rxf3 {[%clk 0:01:01.1]} 33... Bxf3+ {[%clk 0:00:15.2]}
34. Kg1 {[%clk 0:01:02.2]} 1-0

[Event "*** Titled Tuesday Blitz"]
[Site "Chess.com"]
[Date "2018.05.01"]
[Round "10"]
[White "FabianoCaruana"]
[Black "OparinGrigoriy"]
[Result "1-0"]
[WhiteElo "2834"]
[BlackElo "2867"]
[TimeControl "180+2"]
[EndTime "15:12:14 PDT"]
[Termination "FabianoCaruana won by resignation"]

1. e4 {[%clk 0:03:01.9]} 1... c5 {[%clk 0:02:58]} 2. Nf3 {[%clk 0:03:02.7]} 2...
d6 {[%clk 0:02:59.2]} 3. d4 {[%clk 0:03:03.7]} 3... cxd4 {[%clk 0:03:01.1]} 4.
Nxd4 {[%clk 0:03:05.3]} 4... Nf6 {[%clk 0:03:03]} 5. Nc3 {[%clk 0:03:06.7]} 5...
a6 {[%clk 0:03:02.1]} 6. Be3 {[%clk 0:03:07.4]} 6... e5 {[%clk 0:03:01.4]} 7.
Nb3 {[%clk 0:03:08.2]} 7... Be6 {[%clk 0:03:01.3]} 8. Qd2 {[%clk 0:03:06.1]}
8... Nbd7 {[%clk 0:03:00.3]} 9. f3 {[%clk 0:03:06.5]} 9... Be7 {[%clk
0:02:52.5]} 10. O-O-O {[%clk 0:03:05.5]} 10... b5 {[%clk 0:02:53]} 11. g4 {[%clk
0:03:03.8]} 11... Nb6 {[%clk 0:02:53.9]} 12. g5 {[%clk 0:03:03.4]} 12... Nfd7
{[%clk 0:02:54.9]} 13. h4 {[%clk 0:03:04.4]} 13... Rc8 {[%clk 0:02:52.3]} 14.
Kb1 {[%clk 0:03:02.8]} 14... O-O {[%clk 0:02:42.2]} 15. Nd5 {[%clk 0:02:41.5]}
15... Bxd5 {[%clk 0:02:27.2]} 16. exd5 {[%clk 0:02:41.6]} 16... Nc4 {[%clk
0:02:28.7]} 17. Qe1 {[%clk 0:02:35.5]} 17... Nxe3 {[%clk 0:02:27.3]} 18. Qxe3
{[%clk 0:02:36.1]} 18... Nc5 {[%clk 0:02:18.7]} 19. Nxc5 {[%clk 0:02:34.1]}
19... Rxc5 {[%clk 0:02:19.2]} 20. Bd3 {[%clk 0:02:34.8]} 20... Re8 {[%clk
0:01:55.3]} 21. Rdg1 {[%clk 0:02:24.5]} 21... Bf8 {[%clk 0:01:49.1]} 22. h5
{[%clk 0:02:00.2]} 22... e4 {[%clk 0:01:44.8]} 23. Bxe4 {[%clk 0:01:58.6]} 23...
Rxd5 {[%clk 0:01:43.2]} 24. g6 {[%clk 0:01:51.6]} 24... Kh8 {[%clk 0:01:27.6]}
25. gxf7 {[%clk 0:01:01.2]} 25... Ree5 {[%clk 0:00:39.5]} 26. h6 {[%clk
0:00:58.6]} 26... g5 {[%clk 0:00:39.7]} 27. f4 {[%clk 0:00:51.6]} 27... Qe7
{[%clk 0:00:13.9]} 28. fxe5 {[%clk 0:00:47.3]} 28... Rxe5 {[%clk 0:00:15.8]} 29.
Qd4 {[%clk 0:00:45.3]} 29... Qxf7 {[%clk 0:00:15.1]} 30. Rxg5 {[%clk 0:00:43.7]}
30... Bxh6 {[%clk 0:00:13]} 31. Rxe5 {[%clk 0:00:41]} 31... dxe5 {[%clk
0:00:11.9]} 32. Qxe5+ {[%clk 0:00:41.2]} 32... Bg7 {[%clk 0:00:11.8]} 33. Rxh7+
{[%clk 0:00:40.8]} 33... Kg8 {[%clk 0:00:13.4]} 34. Rxg7+ {[%clk 0:00:39.9]}
34... Qxg7 {[%clk 0:00:15.3]} 35. Qxg7+ {[%clk 0:00:41.2]} 1-0